Cogmind - Beta 11 X8 *** ADVENTURER MODE // 2021.12.21 @ 21:43:34 // AFD2019/Pay2Buy Player: PhenomPhear Result: Destroyed 0B10! Performance ------------- Evolutions (9) 4500 Regions Visited (28) 5600 Robots Destroyed (823) 4115 Value Destroyed (39497) 39497 Prototype IDs (65) 1300 Alien Tech Used (0) 0 Bonus (31169) 31169 TOTAL SCORE: 86181 Bonus ------- Triggered High Security 1000 High Alert Combat Kills 18718 Follower Combat Kills 2598 Network Hubs Disabled 200 Met Data Miner 300 Met Zhirov 300 Built Enhanced Grunts 300 A7 Reached Mainframe 300 Met Sigix 2000 Escaped with Sigix 5000 Win 3000 Friendly Fire -2547 Cogmind --------- Core Integrity 1553/1600 Matter 177/300 Energy 1219/1230 System Corruption 3% Temperature Cool (6) Movement Treading (227) Ox1 Location Tau Ceti IV Orbit Parts ------- > --- POWER (2) -------- Zero-point Reactor Zero-point Reactor > --- PROPULSION (3) --- Centrium Heavy Treads Experimental Biometal Medium Treads > --- UTILITY (16) ----- Improved Fusion Compressor Experimental Cooling System Energy Well Advanced Energy Well Experimental Targeting Computer Advanced Target Analyzer Experimental Core Analyzer Precision Matter Filter SHELL Armor Advanced Focal Shield Beam Splitter EM Disruption Field Experimental Force Field > --- WEAPON (4) ------- Advanced Variable Charge Gun Railgun Hypervelocity Railgun Helical Railgun > --- INVENTORY (10) --- Quantum Reactor Advanced Coolant Injector Compact Matter Pod (150) Cooled Plasma Rifle Advanced Plasma Rifle Advanced Plasma Rifle Enhanced Nova Cannon Railgun Sigix Containment Pod Peak State ------------ > --- POWER ------------ Zero-point Reactor Zero-point Reactor > --- PROPULSION ------- Centrium Heavy Treads Experimental Biometal Medium Treads > --- UTILITY ---------- Improved Fusion Compressor Experimental Cooling System Advanced Energy Well Experimental Targeting Computer Advanced Target Analyzer Experimental Core Analyzer Precision Matter Filter Advanced Kinecellerator SHELL Armor Advanced Focal Shield Beam Splitter EM Disruption Field Advanced Hardlight Generator Experimental Force Field > --- WEAPON ----------- Hypervelocity Railgun Helical Railgun Helical Railgun Helical Railgun > --- INVENTORY -------- Quantum Reactor Advanced Coolant Injector Energy Well Compact Matter Pod Cooled Plasma Rifle Advanced Plasma Rifle Advanced Plasma Rifle Enhanced Nova Cannon Sigix Containment Pod [Rating: 226] Favorites ----------- Power Heavy Antimatter Reactor Engine Heavy Deuterium Engine Reactor Heavy Antimatter Reactor Propulsion Armored Treads Treads Armored Treads Leg Myomer Exoskeleton Utility Improved Cooling System Device Improved Cooling System Storage Energy Well Processor Experimental Targeting Computer Hackware Advanced Hacking Suite Protection Improved Weapon Shielding Weapon Cooled Plasma Rifle Energy Gun Cooled Plasma Rifle Energy Cannon Heavy Ion Cannon Ballistic Gun Improved Assault Rifle Launcher Compact Tesla Bomb Launcher Special Weapon Experimental Stasis Projector Slashing Weapon Centrium Greatsword Build | -11 -10 -10 -9 -9 -9 -8 -8 -7 -6 -6 -6 -6 -5 -5 -5 -5 -5 -5 -4 -4 -4 -4 -3 -3 -3 -3 -2 -1 ------- Run | Scr Mat Min Mat Min Exi Min Mat Fac Fac Low Low Dat Pro Fac Ext Cet Arc Hub Fac Upp Upp Zhi Pro Res Qua Sec Res Acc Slots Evolved 18 | . . . 2 . . . 2 2 2 . . . . 2 . . . . 2 . . . . 2 . . 2 2 Power 1 | . . . . . . . . 1 . . . . . . . . . . . . . . . . . . . . Propulsion 1 | . . . . . . . . . 1 . . . . . . . . . . . . . . . . . . . Utility 14 | . . . 1 . . . 2 1 . . . . . 2 . . . . 2 . . . . 2 . . 2 2 Weapon 2 | . . . 1 . . . . . 1 . . . . . . . . . . . . . . . . . . . Parts Attached 219 | . 13 3 29 . . 5 78 7 4 . . . 2 5 6 3 4 . . 1 . . . 12 7 15 10 15 Power 7 | . . . . . . . 1 . . . . . . . . . . . . . . . . 2 . 2 1 1 Engine 1 | . . . . . . . 1 . . . . . . . . . . . . . . . . . . . . . Core . | . . . . . . . . . . . . . . . . . . . . . . . . . . . . . Reactor 6 | . . . . . . . . . . . . . . . . . . . . . . . . 2 . 2 1 1 Propulsion 15 | . 2 . . . . . 5 2 1 . . . . . . . . . . . . . . 2 1 1 1 . Treads 14 | . 2 . . . . . 5 2 . . . . . . . . . . . . . . . 2 1 1 1 . Leg 1 | . . . . . . . . . 1 . . . . . . . . . . . . . . . . . . . Wheel . | . . . . . . . . . . . . . . . . . . . . . . . . . . . . . Hover . | . . . . . . . . . . . . . . . . . . . . . . . . . . . . . Flight . | . . . . . . . . . . . . . . . . . . . . . . . . . . . . . Utility 30 | . 3 . . . . . 2 1 . . . . . 1 3 . . . . 1 . . . 6 . 2 . 11 Device 17 | . 1 . . . . . 1 . . . . . . 1 3 . . . . 1 . . . 3 . 1 . 6 Storage 2 | . . . . . . . . . . . . . . . . . . . . . . . . 1 . . . 1 Processor 1 | . . . . . . . . 1 . . . . . . . . . . . . . . . . . . . . Hackware 4 | . . . . . . . . . . . . . . . . . . . . . . . . . . . . 4 Protection 6 | . 2 . . . . . 1 . . . . . . . . . . . . . . . . 2 . 1 . . Artifact . | . . . . . . . . . . . . . . . . . . . . . . . . . . . . . Weapon 167 | . 8 3 29 . . 5 70 4 3 . . . 2 4 3 3 4 . . . . . . 2 6 10 8 3 Energy Gun 65 | . . . 1 . . . 34 2 3 . . . 1 2 2 2 4 . . . . . . 2 5 6 . 1 Energy Cannon 28 | . 4 . 10 . . . 13 . . . . . . . . . . . . . . . . . . 1 . . Ballistic Gun 23 | . 4 2 7 . . 2 1 . . . . . . . . . . . . . . . . . . . 5 2 Ballistic Cannon . | . . . . . . . . . . . . . . . . . . . . . . . . . . . . . Launcher 51 | . . 1 11 . . 3 22 2 . . . . 1 2 1 1 . . . . . . . . 1 3 3 . Special Weapon . | . . . . . . . . . . . . . . . . . . . . . . . . . . . . . Impact Weapon . | . . . . . . . . . . . . . . . . . . . . . . . . . . . . . Slashing Weapon . | . . . . . . . . . . . . . . . . . . . . . . . . . . . . . Piercing Weapon . | . . . . . . . . . . . . . . . . . . . . . . . . . . . . . Special Melee Weapon . | . . . . . . . . . . . . . . . . . . . . . . . . . . . . . Unidentified Prototypes . | . . . . . . . . . . . . . . . . . . . . . . . . . . . . . Parts Lost 80 | . . 5 4 . . . 23 1 . 1 . . 1 7 2 2 . 2 3 . . . . 5 3 15 3 3 Power 7 | . . . 1 . . . 1 . . . . . . 2 . . . . 1 . . . . . . 2 . . Propulsion 8 | . . 1 . . . . 3 1 . . . . . . . . . . . . . . . 1 1 1 . . Utility 50 | . . 2 2 . . . 15 . . 1 . . 1 5 1 1 . 2 2 . . . . 4 2 10 1 1 Weapon 15 | . . 2 1 . . . 4 . . . . . . . 1 1 . . . . . . . . . 2 2 2 Highest Loss Streak 6 | . . 3 1 . . . 6 1 . 1 . . 1 2 1 1 . 1 1 . . . . 4 3 4 2 2 Average Slot Usage (%) 87 | . 98 74 87 88 88 88 97 95 85 85 86 86 84 87 81 77 76 82 88 84 84 84 84 78 79 76 85 85 Engine 5 | . 14 14 11 11 11 11 9 7 6 6 6 6 6 1 . . . . . . . . . . . . . . Reactor 4 | . . . . . . . . 6 6 6 6 6 6 8 11 11 11 11 10 10 10 10 10 9 9 9 8 7 Treads 11 | . 27 15 22 22 22 22 17 14 . . . . . . . . . . . . . . . 5 8 8 8 8 Leg 1 | . . . . . . . . . 6 6 6 6 6 5 5 5 5 5 5 5 5 5 5 1 . . . . Device 21 | . 11 11 10 11 11 11 26 23 20 20 20 20 20 22 23 18 17 23 31 26 26 26 26 23 27 25 26 31 Storage 1 | . . . . . . . . . . . . . . . . . . 5 5 5 5 5 5 3 4 4 4 7 Processor 4 | . 1 . . . . . 2 11 13 13 13 13 13 11 11 11 10 5 5 5 5 5 5 4 4 4 13 12 Protection 9 | . 13 3 10 11 11 11 13 7 6 5 6 6 4 10 5 5 5 4 9 10 10 10 10 8 4 7 7 4 Energy Gun 15 | . . . 6 . . . 25 22 25 26 26 26 25 22 22 22 23 23 21 21 21 21 21 19 18 8 . . Energy Cannon 1 | . 6 . 6 . . . . . . . . . . . . . . . . . . . . . . . . . Ballistic Gun 7 | . 21 22 18 33 33 32 . . . . . . . . . . . . . . . . . . . . 15 14 Naked Turns . | . . . . . . . . . . . . . . . . . . . . . . . . . . . . . Heaviest Build 128 | 16 22 18 37 33 33 34 55 49 57 57 52 52 52 76 81 79 91 93 88 87 87 87 87 125 123 120 122 128 Greatest Support 120 | 40 40 40 40 40 40 40 40 60 100 100 100 100 100 100 100 100 100 100 100 100 100 100 100 100 115 120 120 120 Greatest Overweight (x) 2 | . 1 . . . . . 2 1 . . . . . . . . . . . . . . . 1 1 1 1 1 Average Overweight (x) . | . . . . . . . . . . . . . . . . . . . . . . . . 1 . . . . Largest Inventory Capacity 10 | 10 10 10 10 10 10 10 10 10 10 10 10 10 10 10 10 10 10 10 10 10 10 10 10 10 10 10 10 10 Average Capacity 10 | 10 10 10 10 10 10 10 10 10 10 10 10 10 10 10 10 10 10 10 10 10 10 10 10 10 10 10 10 10 Most Carried 10 | . 4 7 9 9 9 10 10 10 9 9 9 9 10 10 9 7 10 10 10 10 10 10 10 10 10 10 10 10 Average Carried 8 | . 3 5 7 9 9 9 9 8 8 9 9 9 9 9 7 6 7 10 10 10 10 9 10 7 9 9 9 9 Final Capacity 10 | 10 10 10 10 10 10 10 10 10 10 10 10 10 10 10 10 10 10 10 10 10 10 10 10 10 10 10 10 10 Final Carried 10 | . 4 7 9 9 9 10 9 7 9 9 9 9 10 7 7 6 10 10 10 10 10 10 10 8 10 7 9 10 Class Distribution -------------------- 29% | Tank 27% | Gunner 16% | Pyromaniac-Gunner 14% | Mutant 5% | Pyromaniac-Tank 5% | Commander-Gunner Dominant Class ---------------- Mutant | -10/Materials Mutant | -10/Mines Tank | -9/Materials Tank | -9/Mines Tank | -9/Exiles Tank | -8/Mines Tank | -8/Materials Gunner | -7/Factory Pyromaniac-Gunner | -6/Factory Pyromaniac-Gunner | -6/Lower Caves Pyromaniac-Gunner | -6/Lower Caves Pyromaniac-Gunner | -6/Data Miner Pyromaniac-Gunner | -5/Proximity Caves Pyromaniac-Gunner | -5/Factory Commander-Gunner | -5/Extension Commander-Gunner | -5/Cetus Commander-Gunner | -5/Archives Commander-Gunner | -5/Hub_04(d) Pyromaniac-Tank | -4/Factory Pyromaniac-Tank | -4/Upper Caves Pyromaniac-Tank | -4/Upper Caves Pyromaniac-Tank | -4/Zhirov Pyromaniac-Tank | -3/Proximity Caves Gunner | -3/Research Gunner | -3/Quarantine Mutant | -3/Section 7 Gunner | -2/Research Gunner | -1/Access Resources | -11 -10 -10 -9 -9 -9 -8 -8 -7 -6 -6 -6 -6 -5 -5 -5 -5 -5 -5 -4 -4 -4 -4 -3 -3 -3 -3 -2 -1 ----------- Run | Scr Mat Min Mat Min Exi Min Mat Fac Fac Low Low Dat Pro Fac Ext Cet Arc Hub Fac Upp Upp Zhi Pro Res Qua Sec Res Acc Matter Collected 7953 | 187 500 319 825 110 . 299 1419 132 40 . . . 6 143 127 10 76 63 . 10 . . . 257 182 504 1049 1695 Remotely . | . . . . . . . . . . . . . . . . . . . . . . . . . . . . . Salvage Created 41620 | 187 776 418 2090 339 . 372 7880 810 332 593 374 . 1270 2322 1627 367 94 595 1888 818 723 121 405 2529 1349 3798 5090 4453 Parts . | . . . . . . . . . . . . . . . . . . . . . . . . . . . . . Haulers Intercepted 16 | . 1 . 3 . . . 5 1 1 . . . . 1 . . . . . . . . . . . . 2 2 Recyclers Shooed 3 | . . . . . . . . . . . . . . . . . . . . . . . . 1 . 1 . 1 Parts Field Recycled . | . . . . . . . . . . . . . . . . . . . . . . . . . . . . . Retrieved Matter . | . . . . . . . . . . . . . . . . . . . . . . . . . . . . . Parts Self-Destructed . | . . . . . . . . . . . . . . . . . . . . . . . . . . . . . Prevented . | . . . . . . . . . . . . . . . . . . . . . . . . . . . . . Kills | -11 -10 -10 -9 -9 -9 -8 -8 -7 -6 -6 -6 -6 -5 -5 -5 -5 -5 -5 -4 -4 -4 -4 -3 -3 -3 -3 -2 -1 ------- Run | Scr Mat Min Mat Min Exi Min Mat Fac Fac Low Low Dat Pro Fac Ext Cet Arc Hub Fac Upp Upp Zhi Pro Res Qua Sec Res Acc Combat Hostiles Destroyed 650 | . 18 9 44 7 . 10 145 18 4 11 6 . 21 28 21 7 1 2 29 14 10 . 10 50 26 50 54 55 Melee 10 | . . . . . . . . . . . . . . . . . . . . . . . . . . 10 . . Guns 443 | . 18 7 18 7 . 8 90 11 4 9 4 . 12 19 15 1 1 2 24 11 6 . 10 40 13 8 50 55 Cannons 11 | . . . 11 . . . . . . . . . . . . . . . . . . . . . . . . . AOE 106 | . . 2 14 . . 2 49 6 . . . . 4 4 . 5 . . . . . . . . 1 15 4 . Classes Destroyed 29 | 2 5 2 5 . . 1 4 . . . 2 . 1 2 . . . . . 1 . . . 2 2 . . . Worker 52 | . . . 7 . . . 22 1 . . . . . 7 . . . . 1 . . . . 4 2 1 5 2 Builder 70 | . 3 . 6 . . . 30 . 1 . . . . 8 1 . . . 3 . . . . 1 1 . 7 9 Tunneler 22 | 5 . . 1 2 . 2 6 . 1 . . . . 2 . . . . 1 . . . . 1 . . 1 . Hauler 16 | . 1 . 3 . . . 5 1 1 . . . . 1 . . . . . . . . . . . . 2 2 Recycler 18 | 1 . 1 . 1 . . 5 1 . . . . . 1 1 . . . . . . . . 1 . 1 3 2 Carrier 3 | . . . . . . . . . . . . . . 1 . 1 . . . . . . . . . . 1 . Minesweeper 2 | . . . . . . . . . . . . . 2 . . . . . . . . . . . . . . . Mechanic 9 | . . . . . . . 7 . . . . . . 1 . . . . . . . . . . . . . 1 Operator 17 | . . . 3 . . . 2 . 1 . . . . 3 1 . . . 3 . . . . . 1 1 1 1 Watcher 29 | . 3 . 5 . . . 5 . 2 . . . . 4 1 . . 1 1 . . . . 3 . . 2 2 Swarmer 116 | . 6 . 11 4 . 3 10 . 4 1 . . 6 1 . . . . 8 6 1 . 9 7 2 9 5 23 Saboteur 2 | . . . . . . . . . . . . . . 1 . . . . . . . . . . 1 . . . Grunt 283 | . 12 6 21 3 . 5 89 14 . 6 3 . 6 7 12 5 . 1 14 1 6 . . 11 9 23 17 12 Brawler 24 | . . . . . . . 9 1 . . . . 3 2 . . . . . 3 1 . . 2 1 1 1 . Duelist 28 | . . . 2 . . . 10 2 . 3 1 . . 2 . . . . . 2 . . . . . . 3 3 Protector 13 | . . . 1 . . . 7 1 . . . . 1 . 1 . . . . . . . . . . 1 1 . Sentry 56 | . . . 9 . . . 14 . . 1 . . 2 5 6 . 1 . 1 1 1 . 1 3 . 5 4 2 Demolisher 2 | . . 2 . . . . . . . . . . . . . . . . . . . . . . . . . . Specialist 4 | . . . . . . . 2 . . . . . . . 1 . . . . . . . . 1 . . . . Hunter 51 | . . . . . . 2 3 . . . . . 2 3 1 1 . . 4 1 . . . 9 . 6 10 9 Programmer 46 | . . . . . . . . . . . 1 . . 7 . . . . 2 . . . . 12 . 5 13 6 Heavy 3 | . . . . . . . 1 . . . . . . . . . . 1 . . . . . 1 . . . . Behemoth 5 | . . . . . . . . . . . 1 . 1 . . . . . . . 1 . . 2 . . . . Cetus Guard 1 | . . . . . . . . . . . . . . . . 1 . . . . . . . . . . . . Quarantine Guard 11 | . . . . . . . . . . . . . . . . . . . . . . . . . 11 . . . Enhanced Grunt 2 | . . . . . . . . . . . . . . . . . . 2 . . . . . . . . . . Striker 1 | . . . . . . . . . . . . . . . . . . . . . . . . 1 . . . . Executioner 1 | . . . . . . . . . . . . . . . . . . . . . . . . 1 . . . . Alpha 7 1 | . . . . . . . . . . . . . . . . . . . . . . . . . 1 . . . Fortress 1 | . . . . . . . . . . . . . . . . . . . . . . . . . 1 . . . Samaritan 1 | . . . . . . . . . . . . . . . . . . . . 1 . . . . . . . . Assembled 1 | . . 1 . . . . . . . . . . . . . . . . . . . . . . . . . . Thug 2 | . . . . . . . . . . . . . . . . . . 2 . . . . . . . . . . Butcher 1 | . . . . . . . . . . . . . . . . . . 1 . . . . . . . . . . Guerrilla 2 | . . . . . . . . . . . . . . . . . . 2 . . . . . . . . . . Best Kill Streak 24 | 4 6 3 11 4 . 3 16 8 4 8 4 . 7 9 5 5 1 1 13 9 5 . 6 11 10 9 24 16 Combat Bots Only 19 | . 5 2 7 4 . 3 16 6 4 8 4 . 6 7 2 5 1 1 11 9 5 . 6 11 10 13 19 10 Max Kills in Single Turn 7 | 2 2 2 7 2 . 2 5 5 2 2 2 . 4 2 2 2 1 7 3 2 2 . 2 3 3 2 3 3 Gunslinging 2 | . 1 . . 1 . . 1 1 1 1 1 . . . . . . . 1 1 1 . 1 2 1 . 1 1 Exploded 6 | . . 1 6 . . 1 4 3 . . . . 4 2 . 2 . . . . . . . . 1 2 1 . Melee 1 | . . . . . . . . . . . . . . . . . . . . . . . . . . 1 . . Uniques/NPCs Destroyed . | . . . . . . . . . . . . . . . . . . . . . . . . . . . . . Combat | -11 -10 -10 -9 -9 -9 -8 -8 -7 -6 -6 -6 -6 -5 -5 -5 -5 -5 -5 -4 -4 -4 -4 -3 -3 -3 -3 -2 -1 -------- Run | Scr Mat Min Mat Min Exi Min Mat Fac Fac Low Low Dat Pro Fac Ext Cet Arc Hub Fac Upp Upp Zhi Pro Res Qua Sec Res Acc Damage Taken 24515 | . 451 628 729 147 . 326 3935 358 69 230 145 . 499 1260 559 247 65 189 453 81 199 . 86 2032 2396 5694 2486 1251 Core 1696 | . 89 59 54 8 . 35 392 92 24 . . . 67 153 65 18 . 30 22 13 6 . 12 122 40 252 96 47 Absorbed by Shields 5670 | . . . . . . . . . . . . . . . 157 9 . 193 487 86 209 . 88 1545 284 . 1397 1215 Reduced by Siege Mode 2 | . . . . . . . . . . . . . . . . . . . . . . . . . . . 2 . Core Remaining (%) 76 | 100 . 40 . . . 75 28 86 . . . . 89 . . . . 73 . . . . 95 . . 68 93 97 Volleys Fired 1593 | 7 88 50 140 13 . 28 376 33 10 14 9 . 35 113 43 14 3 7 65 16 18 3 12 111 60 131 95 99 Largest 4 | 2 2 2 3 3 . 3 3 3 4 4 4 . 4 4 4 4 4 4 4 4 4 4 4 4 4 4 4 4 Hottest 376 | 46 65 66 149 69 . 69 210 210 96 96 96 . 96 216 288 188 188 352 352 352 352 352 352 376 376 376 154 154 Shots Fired 4642 | 14 141 99 352 39 . 70 1021 93 40 56 36 . 134 435 158 40 12 28 230 64 72 12 48 435 201 150 309 353 Gun 4318 | 14 106 92 231 39 . 64 959 90 40 56 36 . 133 430 156 36 12 28 230 64 72 12 48 435 195 86 301 353 Cannon 158 | . 35 . 96 . . . 13 . . . . . . . . . . . . . . . . . . 14 . . Launcher 163 | . . 7 25 . . 6 49 3 . . . . 1 5 2 4 . . . . . . . . 6 47 8 . Special 3 | . . . . . . . . . . . . . . . . . . . . . . . . . . 3 . . Kinetic 1125 | 14 106 92 136 39 . 64 3 . . . . . . . . . . . . . . . . . . 17 301 353 Thermal 3351 | . 35 . 191 . . . 969 90 40 56 36 . 133 430 156 36 12 28 230 64 72 12 48 435 195 83 . . Explosive 76 | . . . 7 . . 5 49 3 . . . . 1 5 2 4 . . . . . . . . . . . . Electromagnetic 87 | . . 7 18 . . 1 . . . . . . . . . . . . . . . . . . 6 47 8 . Robot Hit Streak 87 | 11 18 27 17 8 . 14 47 26 9 28 33 . 40 30 68 87 11 22 42 17 22 20 6 56 40 53 26 23 Robot Miss Streak 5 | . 1 2 3 3 . 1 3 2 2 1 1 . 1 2 2 1 1 . 2 2 1 1 2 3 1 1 4 5 Penetration Max 4 | . . . . . . . . . . . . . . . . . . . . . . . . . . 1 2 4 Secondary Targets 115 | . 4 2 . 3 . 2 19 4 1 1 2 . . 2 3 . 1 . 6 7 3 . 3 16 4 . 13 19 Max Gunslinging Chain 2 | . 1 1 . 2 . 1 2 1 1 1 1 . . 1 1 . 1 . 1 1 1 . 1 2 1 . 1 2 Shots Hit Robots 3018 | 11 81 71 171 27 . 47 590 70 21 40 29 . 106 189 112 34 11 11 137 50 62 6 29 342 134 150 244 243 Core Hits 1606 | 6 33 24 85 13 . 23 361 42 11 18 9 . 39 100 53 29 5 19 61 24 22 2 21 119 63 114 160 150 Critical Kills 85 | . . 1 . . . . . . . . . . . . . . . . . . . . . 24 8 2 24 26 Critical Parts Destroyed 141 | . 2 . 2 . . . . . . . . . . . . . . . . . . . . 38 21 13 28 37 Critical Strikes 396 | . 2 1 5 . . . 58 6 2 3 1 . 7 21 9 2 1 1 13 4 8 . 2 76 34 21 54 65 Burn 156 | . . . 3 . . . 58 6 2 3 1 . 7 21 9 2 1 1 13 4 8 . 2 10 . 5 . . Destroy 240 | . 2 1 2 . . . . . . . . . . . . . . . . . . . . 66 34 16 54 65 Melee Attacks 41 | . . . . . . . . . . . . . . . . . . . . . . . . . . 41 . . Impact . | . . . . . . . . . . . . . . . . . . . . . . . . . . . . . Slashing 41 | . . . . . . . . . . . . . . . . . . . . . . . . . . 41 . . Piercing . | . . . . . . . . . . . . . . . . . . . . . . . . . . . . . Sneak Attacks 1 | . . . . . . . . . . . . . . . . . . . . . . . . . . 1 . . Combat Hostiles . | . . . . . . . . . . . . . . . . . . . . . . . . . . . . . Follow-up Attacks . | . . . . . . . . . . . . . . . . . . . . . . . . . . . . . Damage Inflicted 102382 | 190 1268 1086 4355 404 . 1026 19117 2753 497 958 727 . 2762 7457 3627 2471 346 1465 4590 1391 1782 241 866 10427 4076 9583 10776 8141 Guns 78422 | 190 1256 975 2069 404 . 601 12560 1638 497 958 727 . 2455 6117 3569 958 346 397 4564 1391 1782 241 866 10410 3168 2226 9918 8139 Cannons 1516 | . . . 1052 . . . . . . . . . . . . . . . . . . . . . . 464 . . Explosions 19853 | . . 109 1234 . . 425 6543 1115 . . . . 307 1340 58 1513 . 1061 26 . . . . . 908 4376 838 . Melee 2517 | . . . . . . . . . . . . . . . . . . . . . . . . . . 2517 . . Ramming 74 | . 12 2 . . . . 14 . . . . . . . . . . 7 . . . . . 17 . . 20 2 Kinetic 22872 | 190 1256 975 1167 404 . 601 29 . . . . . . . . . . . . . . . . . . 193 9918 8139 Thermal 58016 | . . . 1954 . . 129 12681 2095 497 958 727 . 2455 6331 3569 958 346 397 4564 1391 1782 241 866 10410 3168 2497 . . Explosive 11338 | . . . 1018 . . 265 6393 658 . . . . 307 1126 58 1513 . . . . . . . . . . . . Electromagnetic 7565 | . . 109 216 . . 31 . . . . . . . . . . . 1061 26 . . . . . 908 4376 838 . Impact . | . . . . . . . . . . . . . . . . . . . . . . . . . . . . . Slashing 2517 | . . . . . . . . . . . . . . . . . . . . . . . . . . 2517 . . Piercing . | . . . . . . . . . . . . . . . . . . . . . . . . . . . . . Highest Corruption 12 | . . . 2 2 2 2 3 . . . . . . 3 3 . . 1 . . . . . 5 1 12 6 3 Average Corruption 2 | . . . 1 2 2 2 1 . . . . . . 2 2 . . 1 . . . . . 1 1 3 4 2 Corruption Purged 15 | . . . . . . . . . . . . . . . 3 . . . . . . . . 7 . 5 . . Effects 168 | . . . 24 6 4 6 46 . . . . . . 3 19 . . 1 . . . . . 7 9 18 20 5 Message Errors 44 | . . . 10 2 1 1 7 . . . . . . 2 4 . . 1 . . . . . 2 3 5 4 2 Matter Fused 28 | . . . . . . . 15 . . . . . . . 7 . . . . . . . . . . 2 4 . Heat Flow Errors 18 | . . . 3 1 . 3 4 . . . . . . . 2 . . . . . . . . 1 . 2 2 . Energy Discharges 33 | . . . 4 2 2 1 12 . . . . . . . 5 . . . . . . . . . 1 2 3 1 Parts Rejected 2 | . . . . . . . . . . . . . . . . . . . . . . . . . . . 2 . Data Loss (minor) 32 | . . . 5 1 1 1 7 . . . . . . 1 1 . . . . . . . . 4 4 3 3 1 Data Loss (major) 1 | . . . . . . . . . . . . . . . . . . . . . . . . . . . 1 . Misfires 1 | . . . . . . . . . . . . . . . . . . . . . . . . . . 1 . . Alerts 1 | . . . . . . . . . . . . . . . . . . . . . . . . . . 1 . . Weapon Failures 8 | . . . 2 . . . 1 . . . . . . . . . . . . . . . . . 1 2 1 1 Overload Shots 16 | . . . . . . . . . . . . . . 6 4 1 . . . . . . . 1 4 . . . Effects 3 | . . . . . . . . . . . . . . . 3 . . . . . . . . . . . . . Energy Bleed 1 | . . . . . . . . . . . . . . . 1 . . . . . . . . . . . . . Meltdown 2 | . . . . . . . . . . . . . . . 2 . . . . . . . . . . . . . Overflow Damage 799 | . . . 48 . . 16 174 88 . . . . 20 105 . 6 . . . . . . . . 14 328 . . Projectiles 11 | . . . 11 . . . . . . . . . . . . . . . . . . . . . . . . . Explosions 531 | . . . 37 . . 16 174 88 . . . . 20 105 . 6 . . . . . . . . 14 71 . . Melee 257 | . . . . . . . . . . . . . . . . . . . . . . . . . . 257 . . Knockbacks . | . . . . . . . . . . . . . . . . . . . . . . . . . . . . . Impact . | . . . . . . . . . . . . . . . . . . . . . . . . . . . . . Kinetic . | . . . . . . . . . . . . . . . . . . . . . . . . . . . . . Secondary . | . . . . . . . . . . . . . . . . . . . . . . . . . . . . . Self-Inflicted Damage 522 | . . 4 54 . . . 135 . . . . . . 128 . . . 47 8 . . . . . 11 81 54 . Shots 26 | . . 1 2 . . . 7 . . . . . . 3 . . . 1 1 . . . . . 1 7 3 . Rammed 16 | . 4 3 . . . 1 5 . . . . . . . . . . . . . . . . 1 . . 1 1 Targets Rammed 18 | . 4 3 . . . 1 5 . . . . . . . . . . 1 . . . . . 1 . . 2 1 Kicked 1 | . . . . . . . . . . . . . . . . . . 1 . . . . . . . . . . Crushed 1 | . . . . . . . . . . . . . . . . . . . . . . . . . . . 1 . Highest Temperature 549 | . 63 6 359 117 . 118 383 39 . . . . . 9 183 69 39 432 202 199 149 70 140 549 475 401 520 18 Average Temperature 95 | . 22 4 77 48 . 39 70 9 . . . . . 6 68 28 22 155 89 93 64 52 81 140 162 179 161 9 Received Heat Transfer 6185 | . 306 246 321 30 . 126 2673 261 . 90 27 . 84 117 218 81 18 . 105 19 30 . 4 236 152 674 354 13 Effects 22 | . . . 3 . . . 1 . . . . . . . . . . 4 . . . . . 1 1 2 10 . Shutdowns 2 | . . . 1 . . . . . . . . . . . . . . 1 . . . . . . . . . . Energy Bleed 3 | . . . . . . . 1 . . . . . . . . . . . . . . . . . . 1 1 . Interference 9 | . . . 1 . . . . . . . . . . . . . . . . . . . . . 1 1 6 . Matter Decay 2 | . . . . . . . . . . . . . . . . . . 1 . . . . . . . . 1 . Damage (minor) 2 | . . . 1 . . . . . . . . . . . . . . . . . . . . 1 . . . . Damage (major) 4 | . . . . . . . . . . . . . . . . . . 2 . . . . . . . . 2 . Siege Activations 1 | . . . . . . . . . . . . . . . . . . . . . . . . . . . 1 . Total Turns 33 | . . . . . . . . . . . . . . . . . . . . . . . . . . . 33 . Longest Duration 33 | . . . . . . . . . . . . . . . . . . . . . . . . . . . 33 . Robots Corrupted 26 | . . . 1 . . . . . . . . . . . . . . 1 . . . . . . 7 17 . . Combat Hostiles 24 | . . . 1 . . . . . . . . . . . . . . . . . . . . . 7 16 . . Parts Fried . | . . . . . . . . . . . . . . . . . . . . . . . . . . . . . Impact Corruptions . | . . . . . . . . . . . . . . . . . . . . . . . . . . . . . Robots Melted 58 | . . . . . . . 6 1 . 2 2 . 6 5 6 1 . . 5 3 4 . . 10 6 1 . . Combat Hostiles 56 | . . . . . . . 6 1 . 2 2 . 5 5 6 1 . . 5 3 4 . . 10 5 1 . . Parts Melted 32 | . . . . . . . 2 . . 2 1 . 4 4 1 . . 1 3 2 2 . . 8 2 . . . Heat Transferred 103120 | . . . 3589 . . 200 25209 3193 1250 2300 1550 . 5604 11620 6401 1581 585 650 8250 2900 3850 350 1750 14465 4312 3511 . . Parts Sabotaged 2 | . . . . . . . . . . . . . . . . . . . . . . . . . . 2 . . Parts Stolen . | . . . . . . . . . . . . . . . . . . . . . . . . . . . . . Parts Stripped . | . . . . . . . . . . . . . . . . . . . . . . . . . . . . . Power Chain Reactions . | . . . . . . . . . . . . . . . . . . . . . . . . . . . . . Missiles Intercepted . | . . . . . . . . . . . . . . . . . . . . . . . . . . . . . Alert | -11 -10 -10 -9 -9 -9 -8 -8 -7 -6 -6 -6 -6 -5 -5 -5 -5 -5 -5 -4 -4 -4 -4 -3 -3 -3 -3 -2 -1 ------- Run | Scr Mat Min Mat Min Exi Min Mat Fac Fac Low Low Dat Pro Fac Ext Cet Arc Hub Fac Upp Upp Zhi Pro Res Qua Sec Res Acc Peak Influence 2681 | 30 397 127 842 230 . 313 2393 1546 817 . . . . 2076 1235 1338 608 764 1394 . . . . 932 996 1261 2060 2681 Initial 1100 | . 16 2 . 70 . . . 1100 651 . . . . 147 1100 601 451 177 322 . . . . 153 337 44 617 1020 Average 844 | 13 150 41 515 77 . 98 1482 1348 737 . . . . 1154 839 898 595 389 978 . . . . 598 563 499 998 2052 Maximum Alert Level 5 | . 1 . 3 1 . 1 5 4 3 . . . . 5 4 4 2 3 4 . . . . 3 3 4 5 5 Low Security (%) 20 | 100 62 100 8 87 . 87 5 . . . . . . 20 . . . 33 . . . . . 9 2 26 . . Level 1 11 | . 37 . 26 12 . 12 3 . . . . . . 4 . . . 11 10 . . . . 17 27 15 . . Level 2 18 | . . . 35 . . . 10 . 44 . . . . 12 5 20 100 42 8 . . . . 28 42 29 43 . Level 3 20 | . . . 30 . . . 7 . 55 . . . . 5 79 70 . 12 41 . . . . 43 27 18 28 10 Level 4 9 | . . . . . . . 14 100 . . . . . 11 14 9 . . 40 . . . . . . 10 8 13 Level 5 15 | . . . . . . . 39 . . . . . . 36 . . . . . . . . . . . . 19 76 High Security 5 | . . . . . . . 19 . . . . . . 8 . . . . . . . . . . . . . . Max Security . | . . . . . . . . . . . . . . . . . . . . . . . . . . . . . Sterilizations 1 | . . . . . . . 1 . . . . . . . . . . . . . . . . . . . . . Squads Dispatched 153 | . 6 . 8 . . 1 35 7 2 . . . 1 22 4 2 . 4 7 . . . . 13 1 14 16 10 Investigation 27 | . 6 . 5 . . 1 6 3 1 . . . . 1 1 2 . . 1 . . . . . . . . . Extermination 17 | . . . . . . . . . 1 . . . . 3 . . . . 1 . . . . 3 . 3 4 2 Reinforcement 42 | . . . 2 . . . 12 1 . . . . . 5 2 . . 2 5 . . . . 3 . 3 2 5 Assault 47 | . . . 1 . . . 14 3 . . . . 1 13 1 . . . . . . . . 4 1 3 3 3 Garrison 20 | . . . . . . . 3 . . . . . . . . . . 2 . . . . . 3 . 5 7 . Intercept . | . . . . . . . . . . . . . . . . . . . . . . . . . . . . . Construction Impeded 15 | . . . . . . . 8 . . . . . . 2 . . . . 2 . . . . . . 1 . 2 Haulers Reinforced 5 | . . . . . . . . 1 . . . . . 1 . . . . 1 . . . . . . 1 . 1 Active Scanning Responses . | . . . . . . . . . . . . . . . . . . . . . . . . . . . . . Cargo Convoy Interrupts 2 | . . . . . . . . . . . . . . 1 . . . . . . . . . 1 . . . . Stealth | -11 -10 -10 -9 -9 -9 -8 -8 -7 -6 -6 -6 -6 -5 -5 -5 -5 -5 -5 -4 -4 -4 -4 -3 -3 -3 -3 -2 -1 --------- Run | Scr Mat Min Mat Min Exi Min Mat Fac Fac Low Low Dat Pro Fac Ext Cet Arc Hub Fac Upp Upp Zhi Pro Res Qua Sec Res Acc Distress Signals 44 | . . . 1 . . . 7 . . . . . . . 1 2 . . 1 . . . . 5 2 9 9 7 Communications Jammed . | . . . . . . . . . . . . . . . . . . . . . . . . . . . . . Distress Signals . | . . . . . . . . . . . . . . . . . . . . . . . . . . . . . Times Spotted 948 | . 22 20 57 7 . 10 186 27 6 13 6 . 25 62 43 24 4 10 41 16 10 . 12 78 28 87 78 76 Peak Tracking Total 14 | . 4 6 7 4 . 3 9 6 4 9 4 . 6 9 5 9 2 3 9 9 5 . 6 9 9 14 12 10 Tactical Retreats 43 | . 1 2 1 . . . 6 . . 1 . . . 1 2 . . 1 3 1 . . 1 3 . 11 3 6 Traps | -11 -10 -10 -9 -9 -9 -8 -8 -7 -6 -6 -6 -6 -5 -5 -5 -5 -5 -5 -4 -4 -4 -4 -3 -3 -3 -3 -2 -1 ------- Run | Scr Mat Min Mat Min Exi Min Mat Fac Fac Low Low Dat Pro Fac Ext Cet Arc Hub Fac Upp Upp Zhi Pro Res Qua Sec Res Acc Traps Triggered 26 | . 5 . 4 . . . 4 . . . . . . 1 1 . . . 1 . . . . 2 2 3 1 2 Indirectly 3 | . . . 1 . . . . . . . . . . . . . . . 1 . . . . . . 1 . . Trap Hack Attempts . | . . . . . . . . . . . . . . . . . . . . . . . . . . . . . Triggered . | . . . . . . . . . . . . . . . . . . . . . . . . . . . . . Disarmed . | . . . . . . . . . . . . . . . . . . . . . . . . . . . . . Reprogrammed 6 | . . . . . . . . . . . . . . . . . . . 6 . . . . . . . . . Reused 1 | . . . . . . . . . . . . . . 1 . . . . . . . . . . . . . . Traps Extracted . | . . . . . . . . . . . . . . . . . . . . . . . . . . . . . Installed 3 | . . . . . . . . . . . . . . 3 . . . . . . . . . . . . . . Triggered 7 | . . . . . . . . . . . 3 . 1 3 . . . . . . . . . . . . . . Machines | -11 -10 -10 -9 -9 -9 -8 -8 -7 -6 -6 -6 -6 -5 -5 -5 -5 -5 -5 -4 -4 -4 -4 -3 -3 -3 -3 -2 -1 ---------- Run | Scr Mat Min Mat Min Exi Min Mat Fac Fac Low Low Dat Pro Fac Ext Cet Arc Hub Fac Upp Upp Zhi Pro Res Qua Sec Res Acc Machines Disabled 265 | . 22 7 45 . . 5 46 4 1 . . . . 64 2 1 2 8 22 . . 2 . 3 7 12 8 4 Max in Single Turn 6 | . 1 1 3 . . 2 2 2 1 . . . . 5 1 1 . 6 4 . . 1 . 1 1 3 1 1 Garrison Access 6 | . . . . . . . 1 1 . . . . . 1 . . . . . . . . . 2 1 . . . Network Hub 1 | . . . . . . . . . . . . . . . . . . 1 . . . . . . . . . . Energy Cycler 1 | . . . . . . . . . . . . . . . 1 . . . . . . . . . . . . . Machines Sabotaged . | . . . . . . . . . . . . . . . . . . . . . . . . . . . . . Garrisons Compromised 1 | . . . . . . . . . . . . . . 1 . . . . . . . . . . . . . . Overloaded Fab Kills . | . . . . . . . . . . . . . . . . . . . . . . . . . . . . . Hacking | -11 -10 -10 -9 -9 -9 -8 -8 -7 -6 -6 -6 -6 -5 -5 -5 -5 -5 -5 -4 -4 -4 -4 -3 -3 -3 -3 -2 -1 --------- Run | Scr Mat Min Mat Min Exi Min Mat Fac Fac Low Low Dat Pro Fac Ext Cet Arc Hub Fac Upp Upp Zhi Pro Res Qua Sec Res Acc Machines Accessed 53 | . 4 . 5 1 . 1 4 3 3 . . 4 . 2 3 2 . 2 2 . 1 5 . 1 2 6 . 2 Terminals 41 | . 4 . 5 . . 1 4 2 3 . . . . 2 3 2 . 2 2 . 1 . . 1 2 5 . 2 Fabricators . | . . . . . . . . . . . . . . . . . . . . . . . . . . . . . Repair Stations . | . . . . . . . . . . . . . . . . . . . . . . . . . . . . . Recycling Units . | . . . . . . . . . . . . . . . . . . . . . . . . . . . . . Scanalyzers . | . . . . . . . . . . . . . . . . . . . . . . . . . . . . . Garrison Access 2 | . . . . . . . . 1 . . . . . . . . . . . . . . . . . 1 . . Total Hacks 171 | . 14 . 18 1 . 7 14 12 7 . . 32 . 7 7 6 . 3 8 . 1 18 . 1 2 7 . 6 Successful 117 | . 10 . 14 1 . 6 7 2 2 . . 32 . 4 6 3 . . 4 . 1 18 . 1 2 2 . 2 Failed 53 | . 4 . 4 . . . 7 10 5 . . . . 3 1 3 . 3 4 . . . . . . 5 . 4 Catastrophic 14 | . . . . . . . 2 2 1 . . . . 2 1 . . 2 1 . . . . . . 2 . 1 Database Lockouts 1 | . . . . . . 1 . . . . . . . . . . . . . . . . . . . . . . Manual 37 | . . . . . . 7 4 5 4 . . . . 4 . 2 . . 3 . . . . . 1 4 . 3 Terminals 115 | . 14 . 18 . . 7 14 8 7 . . . . 7 7 6 . 3 8 . 1 . . 1 2 6 . 6 Fabricators . | . . . . . . . . . . . . . . . . . . . . . . . . . . . . . Repair Stations . | . . . . . . . . . . . . . . . . . . . . . . . . . . . . . Recycling Units . | . . . . . . . . . . . . . . . . . . . . . . . . . . . . . Scanalyzers . | . . . . . . . . . . . . . . . . . . . . . . . . . . . . . Garrison Access 5 | . . . . . . . . 4 . . . . . . . . . . . . . . . . . 1 . . Terminal Hacks 116 | . 10 . 14 1 . 5 7 2 2 . . 32 . 4 6 3 . . 4 . 1 18 . 1 2 2 . 2 Record 38 | . 5 . 7 . . 2 1 . . . . 11 . . . 3 . . 1 . 1 6 . . 1 . . . Part Schematic 16 | . . . . . . . . . . . . 12 . . . . . . . . . 4 . . . . . . Robot Schematic 6 | . . . . . . . . . . . . 6 . . . . . . . . . . . . . . . . Robot Analysis 6 | . . . . . . . 1 . . . . . . . 1 . . . . . . 4 . . . . . . Prototype ID Bank 10 | . . . . . . 2 1 . . . . 3 . . . . . . . . . 4 . . . . . . Open Door 4 | . . . . 1 . . . . . . . . . . . . . . . . . . . 1 1 . . 1 Open DSF 1 | . . . . . . . . . 1 . . . . . . . . . . . . . . . . . . . Level Access Points 3 | . . . . . . . . . . . . . . 1 . . . . . . . . . . . 1 . 1 Branch Access Points 4 | . 1 . . . . . . 1 . . . . . 1 . . . . 1 . . . . . . . . . Emergency Access Points 1 | . . . . . . . . . . . . . . 1 . . . . . . . . . . . . . . Machine Index 1 | . . . . . . . . . . . . . . . 1 . . . . . . . . . . . . . Terminal Index 1 | . . . . . . . . . . . . . . . . . . . 1 . . . . . . . . . Alert Level 7 | . 1 . 1 . . . 3 . 1 . . . . . 1 . . . . . . . . . . . . . Unreport Threat 3 | . . . . . . . . . . . . . . . 3 . . . . . . . . . . . . . Locate Traps 1 | . . . . . . . 1 . . . . . . . . . . . . . . . . . . . . . Reprogram Traps 1 | . . . . . . . . . . . . . . . . . . . 1 . . . . . . . . . Dispatch Records 2 | . 1 . . . . 1 . . . . . . . . . . . . . . . . . . . . . . Maintenance Status 1 | . . . 1 . . . . . . . . . . . . . . . . . . . . . . . . . Surveillance Status 1 | . . . 1 . . . . . . . . . . . . . . . . . . . . . . . . . Recall Investigation 1 | . 1 . . . . . . . . . . . . . . . . . . . . . . . . . . . Recall Reinforcements 1 | . . . . . . . . 1 . . . . . . . . . . . . . . . . . . . . Hauler Manifests 2 | . . . 2 . . . . . . . . . . . . . . . . . . . . . . . . . Registered Components 1 | . . . 1 . . . . . . . . . . . . . . . . . . . . . . . . . Zone Layout 4 | . 1 . 1 . . . . . . . . . . 1 . . . . . . . . . . . 1 . . Fabricator Hacks . | . . . . . . . . . . . . . . . . . . . . . . . . . . . . . Repair Station Hacks . | . . . . . . . . . . . . . . . . . . . . . . . . . . . . . Recycling Unit Hacks . | . . . . . . . . . . . . . . . . . . . . . . . . . . . . . Scanalyzer . | . . . . . . . . . . . . . . . . . . . . . . . . . . . . . Garrison Access Hacks . | . . . . . . . . . . . . . . . . . . . . . . . . . . . . . Unauthorized Hacks 1 | . . . . . . 1 . . . . . . . . . . . . . . . . . . . . . . Terminals 1 | . . . . . . 1 . . . . . . . . . . . . . . . . . . . . . . Track 1 | . . . . . . 1 . . . . . . . . . . . . . . . . . . . . . . Fabricators . | . . . . . . . . . . . . . . . . . . . . . . . . . . . . . Repair Stations . | . . . . . . . . . . . . . . . . . . . . . . . . . . . . . Recycling Units . | . . . . . . . . . . . . . . . . . . . . . . . . . . . . . Scanalyzers . | . . . . . . . . . . . . . . . . . . . . . . . . . . . . . Garrison Access . | . . . . . . . . . . . . . . . . . . . . . . . . . . . . . Data Cores Recovered 4 | . . . . . . . . . 1 . . . . 1 1 . . . 1 . . . . . . . . . Used 3 | . . . . . . . . . 1 . . . . . 1 . . . 1 . . . . . . . . . Hacking Detections 35 | . 4 . 5 . . 1 4 3 2 . . . . 2 2 2 . 2 2 . . . . . . 4 . 2 Full Trace Events 23 | . 4 . 5 . . 1 4 3 1 . . . . 1 1 2 . . 1 . . . . . . . . . Feedback Events 2 | . . . 1 . . . 1 . . . . . . . . . . . . . . . . . . . . . Corruption 2 | . . . 1 . . . 1 . . . . . . . . . . . . . . . . . . . . . Feedback Blocked . | . . . . . . . . . . . . . . . . . . . . . . . . . . . . . Robot Schematics Acquired 6 | . . . . . . . . . . . . 6 . . . . . . . . . . . . . . . . Robots Built . | . . . . . . . . . . . . . . . . . . . . . . . . . . . . . Authchips . | . . . . . . . . . . . . . . . . . . . . . . . . . . . . . Time . | . . . . . . . . . . . . . . . . . . . . . . . . . . . . . Total Robot Build Rating . | . . . . . . . . . . . . . . . . . . . . . . . . . . . . . Part Schematics Acquired 16 | . . . . . . . . . . . . 12 . . . . . . . . . 4 . . . . . . Parts Built . | . . . . . . . . . . . . . . . . . . . . . . . . . . . . . Authchips . | . . . . . . . . . . . . . . . . . . . . . . . . . . . . . Time . | . . . . . . . . . . . . . . . . . . . . . . . . . . . . . Total Part Build Rating . | . . . . . . . . . . . . . . . . . . . . . . . . . . . . . Parts Repaired . | . . . . . . . . . . . . . . . . . . . . . . . . . . . . . Time . | . . . . . . . . . . . . . . . . . . . . . . . . . . . . . Parts Recycled . | . . . . . . . . . . . . . . . . . . . . . . . . . . . . . Recycled Matter . | . . . . . . . . . . . . . . . . . . . . . . . . . . . . . Retrieved Matter . | . . . . . . . . . . . . . . . . . . . . . . . . . . . . . Retrieved Components . | . . . . . . . . . . . . . . . . . . . . . . . . . . . . . Parts Scanalyzed . | . . . . . . . . . . . . . . . . . . . . . . . . . . . . . Part Schematics Acquired . | . . . . . . . . . . . . . . . . . . . . . . . . . . . . . Parts Damaged . | . . . . . . . . . . . . . . . . . . . . . . . . . . . . . Bothacking | -11 -10 -10 -9 -9 -9 -8 -8 -7 -6 -6 -6 -6 -5 -5 -5 -5 -5 -5 -4 -4 -4 -4 -3 -3 -3 -3 -2 -1 ------------ Run | Scr Mat Min Mat Min Exi Min Mat Fac Fac Low Low Dat Pro Fac Ext Cet Arc Hub Fac Upp Upp Zhi Pro Res Qua Sec Res Acc Used RIF Installer . | . . . . . . . . . . . . . . . . . . . . . . . . . . . . . Robots Hacked . | . . . . . . . . . . . . . . . . . . . . . . . . . . . . . Non-combat . | . . . . . . . . . . . . . . . . . . . . . . . . . . . . . Combat . | . . . . . . . . . . . . . . . . . . . . . . . . . . . . . Robot Hacks Applied . | . . . . . . . . . . . . . . . . . . . . . . . . . . . . . Relay Couplers Released 19 | . . . . . . . 2 1 . . . . . 3 . . . . . . . . . 6 3 . 4 . Machine Destruction 11 | . . . . . . . 2 1 . . . . . 3 . . . . . . . . . 2 3 . . . Programmers 8 | . . . . . . . . . . . . . . . . . . . . . . . . 4 . . 4 . Fabnet Peak Effective % . | . . . . . . . . . . . . . . . . . . . . . . . . . . . . . Robots Rewired 29 | . . . . . . . . . . . . . 1 . 26 . . . . 2 . . . . . . . . Allies Hacked 1 | . . . . . . . . . . . . . . . 1 . . . . . . . . . . . . . Hacks Repelled . | . . . . . . . . . . . . . . . . . . . . . . . . . . . . . Allies | -11 -10 -10 -9 -9 -9 -8 -8 -7 -6 -6 -6 -6 -5 -5 -5 -5 -5 -5 -4 -4 -4 -4 -3 -3 -3 -3 -2 -1 -------- Run | Scr Mat Min Mat Min Exi Min Mat Fac Fac Low Low Dat Pro Fac Ext Cet Arc Hub Fac Upp Upp Zhi Pro Res Qua Sec Res Acc Total Allies 40 | . . 1 . 2 . . . . . . . . 2 . 28 5 . . . 2 . . . . . . . . Largest Group 19 | . . 1 . 2 2 . . . . . . . 2 1 19 19 13 12 3 2 2 2 2 1 . . . . Highest-Rated Group 830 | . . 31 . 45 45 . . . . . . . 125 95 676 830 802 685 285 96 96 96 96 48 . . . . Highest-Rated Ally 159 | . . 31 . 31 31 . . . . . . . 95 95 159 139 117 95 95 48 48 48 48 48 . . . . Total Orders . | . . . . . . . . . . . . . . . . . . . . . . . . . . . . . Ally Attacks 410 | . . 9 . . . . . . . . . . 30 24 138 120 29 33 23 . . . 4 . . . . . Total Damage 11019 | . . 145 . . . . . . . . . . 893 1143 3241 2930 788 888 866 . . . 125 . . . . . Kills 71 | . . 4 . . . . . . . . . . 3 9 20 20 3 8 3 . . . 1 . . . . . Allies Corrupted 2 | . . . . . . . . . . . . . . . 1 . . 1 . . . . . . . . . . Allies Melted 1 | . . . . . . . . . . . . . 1 . . . . . . . . . . . . . . . Intel | -11 -10 -10 -9 -9 -9 -8 -8 -7 -6 -6 -6 -6 -5 -5 -5 -5 -5 -5 -4 -4 -4 -4 -3 -3 -3 -3 -2 -1 ------- Run | Scr Mat Min Mat Min Exi Min Mat Fac Fac Low Low Dat Pro Fac Ext Cet Arc Hub Fac Upp Upp Zhi Pro Res Qua Sec Res Acc Robot Analysis Total 6 | . . . . . . . 1 . . . . . . . 1 . . . . . . 4 . . . . . . Derelict Logs Recovered . | . . . . . . . . . . . . . . . . . . . . . . . . . . . . . Drone Launches . | . . . . . . . . . . . . . . . . . . . . . . . . . . . . . Drone Recoveries . | . . . . . . . . . . . . . . . . . . . . . . . . . . . . . Exploration | -11 -10 -10 -9 -9 -9 -8 -8 -7 -6 -6 -6 -6 -5 -5 -5 -5 -5 -5 -4 -4 -4 -4 -3 -3 -3 -3 -2 -1 ------------- Run | Scr Mat Min Mat Min Exi Min Mat Fac Fac Low Low Dat Pro Fac Ext Cet Arc Hub Fac Upp Upp Zhi Pro Res Qua Sec Res Acc Turns Passed 34066 | 84 1860 1291 3586 1008 488 1030 6866 563 286 251 434 82 1143 2420 1596 315 246 213 856 339 346 194 323 2305 2451 1199 1250 1041 Spaces Moved 16300 | 43 1001 680 1756 557 288 549 1974 196 244 198 400 83 981 1333 870 189 211 154 398 278 295 174 289 855 1315 415 286 288 Core 11 | 11 . . . . . . . . . . . . . . . . . . . . . . . . . . . . Treads 9769 | 32 1001 680 1756 557 288 549 1974 196 . . . . . . . . . . . . . . . 432 1315 415 286 288 Legs 6520 | . . . . . . . . . 244 198 400 83 981 1333 870 189 211 154 398 278 295 174 289 423 . . . . Wheels . | . . . . . . . . . . . . . . . . . . . . . . . . . . . . . Hover . | . . . . . . . . . . . . . . . . . . . . . . . . . . . . . Flight . | . . . . . . . . . . . . . . . . . . . . . . . . . . . . . Fastest Speed 50 | 50 160 160 170 170 170 170 170 160 100 100 100 100 100 100 100 100 100 100 100 100 100 100 100 160 160 147 147 147 Average Speed 152 | 131 160 160 170 170 170 170 214 219 100 100 100 100 100 100 100 100 100 100 100 100 100 100 100 202 167 184 200 224 Slowest Speed 330 | 160 260 160 170 170 170 170 330 250 100 100 100 100 100 100 100 100 100 100 100 100 100 100 100 245 245 240 227 227 Overloaded Moves . | . . . . . . . . . . . . . . . . . . . . . . . . . . . . . Propulsion Burnouts . | . . . . . . . . . . . . . . . . . . . . . . . . . . . . . Robots Hopped . | . . . . . . . . . . . . . . . . . . . . . . . . . . . . . Cave-ins Triggered . | . . . . . . . . . . . . . . . . . . . . . . . . . . . . . Exploration Rate (%) 55 | 4 98 99 95 99 76 90 87 5 11 37 55 71 98 30 88 72 94 14 8 43 55 61 61 22 84 27 14 9 Regions Visited 28 Branch Regions 18 Pre-discovered Areas 5 | . . . . 1 . . . . . . . 1 . . . . . . . . . 3 . . . . . . Known Exits Taken 14 | . 1 . . . . . . 1 1 1 1 1 1 1 1 1 1 1 1 . . . . . . 1 . . Unknown Exits Taken 14 | 1 . 1 1 1 1 1 1 . . . . . . . . . . . . 1 1 1 1 1 1 . 1 . Scrap Searched . | . . . . . . . . . . . . . . . . . . . . . . . . . . . . . Spaces Dug 223 | . . . 20 . . . 22 . . . . . . 140 22 . . 11 . . . . . . . 2 6 . Terrain Destroyed 2301 | . 3 . 315 . . 63 663 39 . . . . 3 510 44 65 . 176 116 8 5 . 9 . 12 4 118 148 Melee 2 | . . . . . . . . . . . . . . . . . . . . . . . . . . 2 . . Projectile 521 | . 3 . 23 . . . 47 . . . . . 1 77 22 . . 11 35 8 5 . 9 . 12 2 118 148 AOE 1778 | . . . 292 . . 63 616 39 . . . . 2 433 22 65 . 165 81 . . . . . . . . . Terrain Rammed . | . . . . . . . . . . . . . . . . . . . . . . . . . . . . . Walls Destroyed . | . . . . . . . . . . . . . . . . . . . . . . . . . . . . . Machines Disabled . | . . . . . . . . . . . . . . . . . . . . . . . . . . . . . Actions | -11 -10 -10 -9 -9 -9 -8 -8 -7 -6 -6 -6 -6 -5 -5 -5 -5 -5 -5 -4 -4 -4 -4 -3 -3 -3 -3 -2 -1 --------- Run | Scr Mat Min Mat Min Exi Min Mat Fac Fac Low Low Dat Pro Fac Ext Cet Arc Hub Fac Upp Upp Zhi Pro Res Qua Sec Res Acc Total 22287 | 56 1110 781 2065 589 287 588 3775 258 260 216 411 82 1058 2143 1491 285 236 196 719 313 316 193 303 1250 1474 639 747 446 Wait 3854 | 7 4 44 140 20 . 4 1328 16 1 5 3 . 11 687 429 80 18 34 257 3 4 6 3 257 88 28 348 29 Move 16271 | 42 1000 679 1755 556 287 548 1973 195 243 197 399 82 980 1332 869 188 210 153 397 277 294 173 288 854 1314 414 285 287 Hop . | . . . . . . . . . . . . . . . . . . . . . . . . . . . . . Pick Up 25 | . . 2 . . . 1 4 1 . . . . 4 . 1 . . . . . . 3 . 4 1 1 2 1 Fast Attach 31 | . 5 . . . . . 6 . . . . . . 1 . . . . . . . . . 1 1 4 3 10 Attach 31 | . 1 . 2 . . . 4 3 1 . . . . . 2 1 . . . . . . . 7 1 5 1 3 Detach 23 | . 1 . 1 . . . 3 . 2 . . . . . . . 1 1 . 1 . . . 4 1 1 1 6 Swap 157 | . 7 3 27 . . 5 68 4 3 . . . 2 4 4 2 4 . . 1 . . . 4 5 6 6 2 Drop 61 | . . . . . . 1 8 6 . . . . 3 3 1 . . . . 1 . 8 . 7 3 8 4 8 Fire 1593 | 7 88 50 140 13 . 28 376 33 10 14 9 . 35 113 43 14 3 7 65 16 18 3 12 111 60 131 95 99 Melee 41 | . . . . . . . . . . . . . . . . . . . . . . . . . . 41 . . Ram . | . . . . . . . . . . . . . . . . . . . . . . . . . . . . . Kick 1 | . . . . . . . . . . . . . . . . . . 1 . . . . . . . . . . Crush 17 | . 4 3 . . . 1 5 . . . . . . . . . . . . . . . . 1 . . 2 1 Escape Stasis 3 | . . . . . . . . . . . . . . . 3 . . . . . . . . . . . . . Rewire 176 | . . . . . . . . . . . . . 23 . 139 . . . . 14 . . . . . . . . Trap 3 | . . . . . . . . . . . . . . 3 . . . . . . . . . . . . . . Miscellaneous . | . . . . . . . . . . . . . . . . . . . . . . . . . . . . . Route ------- -11/Scrapyard -10/Materials (discovered 5 exits: *Mat x3 / *Min x2) -10/Mines (discovered 2 exits: *Mat x2) -9/Materials (discovered 4 exits: *Mat x3 / *Min) -9/Mines (discovered 4 exits: *Mat x2 / [*Exi] / [*Zio]) -9/Exiles (discovered 2 exits: *Min x2) -8/Mines (discovered 2 exits: *Mat x2) -8/Materials (discovered 3 exits: *Fac x3) -7/Factory (discovered 5 exits: *Fac / Sto x2 / Low x2) -6/Factory -6/Lower Caves -6/Lower Caves (discovered 2 exits: *Fac / *Dat) -6/Data Miner -5/Proximity Caves -5/Factory (discovered 8 exits: *Fac x4 / *Upp x2 / *Ext x2) -5/Extension (discovered 2 exits: *Fac / *Cet) -5/Cetus -5/Archives (discovered 3 exits: *Fac / *Hub x2) -5/Hub_04(d) -4/Factory (discovered 2 exits: *Upp x2) -4/Upper Caves -4/Upper Caves (discovered 2 exits: *Res / *Zhi) -4/Zhirov -3/Proximity Caves -3/Research -3/Quarantine (discovered 2 exits: *Res / *Sec) -3/Section 7 -2/Research -1/Access Tau Ceti IV Orbit History --------- Turn | Location | Event 3 | -11/Scrapyard | Discovered new exit (range 16) 85 | -11/Scrapyard | Entered Materials 260 | -10/Materials | Discovered new exit (range 9) 314 | -10/Materials | Build established: Mutant 478 | -10/Materials | Discovered new exit (range 16) 809 | -10/Materials | Identified exit to Mines 965 | -10/Materials | Discovered new exit (range 11) 1146 | -10/Materials | Discovered new exit (range 6) 1945 | -10/Materials | Entered Mines 1965 | -10/Mines | Met a Derelict bent on vengeance 2212 | -10/Mines | Joined a pair of Derelicts in attacking an 0b10 outpost 2383 | -10/Mines | Discovered new exit (range 7) 2386 | -10/Mines | Received a Mining Laser from a helpful Derelict 2534 | -10/Mines | Assembled infested the area 2539 | -10/Mines | Assisted by a Guerilla fighting off Assembled 2989 | -10/Mines | Core integrity fell below 50% 3027 | -10/Mines | Lost 3 parts (1u2w) 3175 | -10/Mines | Received a Rocket Launcher from a helpful Derelict 3223 | -10/Mines | Discovered new exit (range 5) 3236 | -10/Mines | Entered Materials 3236 | -9/Materials | Evolved 2 slots: Utility x1, Weapon x1 3579 | -9/Materials | Discovered new exit (range 4) 3626 | -9/Materials | Build established: Tank 3729 | -9/Materials | Destroyed 7 combat bots 4034 | -9/Materials | Discovered new exit (range 14) 4446 | -9/Materials | Discovered new exit (range 5) 5111 | -9/Materials | Discovered new exit (range 11) 5236 | -9/Materials | First assault squad dispatched 5278 | -9/Materials | Build established: Mutant 5645 | -9/Materials | Build established: Tank 6822 | -9/Materials | Entered Mines 6823 | -9/Mines | Learned location of Storage (-7) 7004 | -9/Mines | A weapon hastily lodged in a ceiling crevice suddenly fell to the ground 7252 | -9/Mines | Deemed a non-threat by the Exiles lab entrance 7254 | -9/Mines | Discovered new exit (range 5) 7335 | -9/Mines | Discovered new exit (range 12) 7467 | -9/Mines | A Derelict revealed a hidden shortcut to a safe place 7530 | -9/Mines | Discovered new exit (range 7) 7654 | -9/Mines | Met a Derelict who couldn't figure out how to use a Trap Extractor 7830 | -9/Mines | Entered Exiles 7830 | -9/Exiles | Found Exiles lab abandoned 7830 | -9/Exiles | Accompanied by 2 allies 7859 | -9/Exiles | Discovered new exit (range 15) 7860 | -9/Exiles | Led the pair of lost Derelicts to a safe place 8296 | -9/Exiles | Discovered new exit (range 14) 8318 | -9/Exiles | Entered Mines 8410 | -8/Mines | Central database locked down 8697 | -8/Mines | Discovered new exit (range 9) 9088 | -8/Mines | Discovered new exit (range 5) 9348 | -8/Mines | Entered Materials 9348 | -8/Materials | Evolved 2 slots: Utility x2 9887 | -8/Materials | Discovered new exit (range 13) 10548 | -8/Materials | First assault squad dispatched 10898 | -8/Materials | Destroyed 11 combat bots 10928 | -8/Materials | Lost 6 parts (1n4u1w) 10932 | -8/Materials | Discovered new exit (range 14) 11171 | -8/Materials | Build established: Gunner 11366 | -8/Materials | Garrison activated, responded to threat 11403 | -8/Materials | Destroyed 7 combat bots 11539 | -8/Materials | Discovered new exit (range 14) 11729 | -8/Materials | Build established: Tank 11945 | -8/Materials | Destroyed 9 combat bots 14249 | -8/Materials | Lost 5 parts (1n3u1w) 14317 | -8/Materials | Core integrity fell below 50% 14616 | -8/Materials | Build established: Gunner 14876 | -8/Materials | High security lockdown imminent 14956 | -8/Materials | High security lockdown engaged 15004 | -8/Materials | Sterilization system engaged 15004 | -8/Materials | Non-combat units ordered to evacuate 15027 | -8/Materials | Destroyed 8 combat bots 15104 | -8/Materials | Combat units ordered to evacuate 15168 | -8/Materials | Destroyed 16 combat bots 15304 | -8/Materials | Ambient heat levels rising (+10) 15454 | -8/Materials | Ambient heat levels rising (+10) 15604 | -8/Materials | Ambient heat levels rising (+10) 15754 | -8/Materials | Ambient heat levels rising (+10) 15904 | -8/Materials | Ambient heat levels rising (+10) 16054 | -8/Materials | Ambient heat levels rising (+10) 16204 | -8/Materials | Ambient heat levels rising (+10) 16214 | -8/Materials | Entered Factory 16214 | -7/Factory | Evolved 2 slots: Power x1, Utility x1 16226 | -7/Factory | Identified exit to Storage 16226 | -7/Factory | Identified exit to Lower Caves 16468 | -7/Factory | Found Myomer Exoskeleton 16614 | -7/Factory | First assault squad dispatched 16711 | -7/Factory | Discovered new exit (range 11) 16727 | -7/Factory | Identified exit to Factory 16777 | -7/Factory | Entered another Factory area 16777 | -6/Factory | Evolved 2 slots: Propulsion x1, Weapon x1 17004 | -6/Factory | Discovered new exit (range 14) 17016 | -6/Factory | Identified exit to Lower Caves 17035 | -6/Factory | Spotted B-75 Beast 17063 | -6/Factory | Entered Lower Caves 17087 | -6/Lower Caves | Build established: Pyromaniac-Gunner 17275 | -6/Lower Caves | Attracted the attention of an 0b10 outpost 17307 | -6/Lower Caves | Discovered new exit (range 5) 17313 | -6/Lower Caves | Identified exit to Lower Caves 17314 | -6/Lower Caves | Entered another Lower Caves area 17320 | -6/Lower Caves | Destroyed 8 combat bots 17320 | -6/Lower Caves | Discovered new exit (range 9) 17327 | -6/Lower Caves | Identified exit to Factory 17413 | -6/Lower Caves | Spotted B-75 Beast 17421 | -6/Lower Caves | Destroyed B-75 Beast 17739 | -6/Lower Caves | Discovered new exit (range 10) 17747 | -6/Lower Caves | Identified exit to Data Miner 17748 | -6/Lower Caves | Entered Data Miner 17748 | -6/Data Miner | Discovered new exit (range 6) 17767 | -6/Data Miner | Met Data Miner 17794 | -6/Data Miner | Learned location of Section 7 (-3) 17794 | -6/Data Miner | Acquired the access code to Warlord's prototype stash 17802 | -6/Data Miner | Received God Mode back door access code from Data Miner 17829 | -6/Data Miner | Identified exit to Proximity Caves 17830 | -6/Data Miner | Entered Proximity Caves 18120 | -5/Proximity Caves | Escorted by Enhanced Grunt 18153 | -5/Proximity Caves | Attracted the attention of an 0b10 checkpoint 18234 | -5/Proximity Caves | Attracted the attention of an 0b10 outpost 18740 | -5/Proximity Caves | Spotted B-75 Beast 18759 | -5/Proximity Caves | Destroyed B-75 Beast 18952 | -5/Proximity Caves | Discovered exit to Factory (range 10) 18973 | -5/Proximity Caves | Entered Factory 18973 | -5/Factory | Accompanied by 1 ally 18973 | -5/Factory | Evolved 2 slots: Utility x2 19102 | -5/Factory | Discovered new exit (range 16) 19577 | -5/Factory | Discovered new exit (range 6) 19610 | -5/Factory | Identified exit to Factory 19684 | -5/Factory | Identified exit to Upper Caves 19779 | -5/Factory | Identified exit to Extension 19794 | -5/Factory | Incoming investigation squad redirected 19873 | -5/Factory | First assault squad dispatched 20081 | -5/Factory | Incoming assault squad redirected 20914 | -5/Factory | Destroyed 7 combat bots 21099 | -5/Factory | Incoming assault squad redirected 21182 | -5/Factory | Cargo convoy interrupted 21182 | -5/Factory | High security lockdown imminent 21262 | -5/Factory | High security lockdown engaged 21393 | -5/Factory | Entered Extension 21469 | -5/Extension | Rescued a captive Derelict 21497 | -5/Extension | Incoming investigation squad redirected 21666 | -5/Extension | Rescued A7 21693 | -5/Extension | First assault squad dispatched 21878 | -5/Extension | Build established: Commander-Gunner 22522 | -5/Extension | Spotted B-75 Beast 22529 | -5/Extension | Allies destroyed B-75 Beast 22540 | -5/Extension | Spotted B-75 Beast 22549 | -5/Extension | Allies destroyed B-75 Beast 22656 | -5/Extension | Energy Cycler disabled 22931 | -5/Extension | Discovered exit to Factory (range 10) 22932 | -5/Extension | Discovered new exit (range 6) 22984 | -5/Extension | Identified exit to Cetus 22989 | -5/Extension | Entered Cetus 22989 | -5/Cetus | Accompanied by 19 allies (A7) 22994 | -5/Cetus | Acquired a Cetus Manufacturing Module code from A7 23003 | -5/Cetus | Spotted Cetus Guard 23003 | -5/Cetus | Spotted Cetus Guard 23005 | -5/Cetus | Spotted Cetus Guard 23005 | -5/Cetus | Spotted Cetus Guard 23018 | -5/Cetus | Destroyed Cetus Guard 23023 | -5/Cetus | Allies destroyed Cetus Guard 23024 | -5/Cetus | Allies destroyed Cetus Guard 23026 | -5/Cetus | Allies destroyed Cetus Guard 23068 | -5/Cetus | Started Cetus Manufacturing Module 23093 | -5/Cetus | Manufactured an Enhanced Grunt 23118 | -5/Cetus | Manufactured an Enhanced Grunt 23135 | -5/Cetus | Escorted A7 to Cetus Mainframe 23143 | -5/Cetus | Manufactured an Enhanced Grunt 23152 | -5/Cetus | Incoming investigation squad redirected 23168 | -5/Cetus | Manufactured an Enhanced Grunt 23193 | -5/Cetus | Manufactured an Enhanced Grunt 23261 | -5/Cetus | Discovered new exit (range 15) 23293 | -5/Cetus | Identified exit to Archives 23304 | -5/Cetus | Entered Archives 23304 | -5/Archives | Accompanied by 13 allies (A7) 23309 | -5/Archives | Received a hacking code to weaken MAIN.C 23342 | -5/Archives | Unable to access archive contents 23345 | -5/Archives | Discovered exit to Factory (range 14) 23379 | -5/Archives | Discovered new exit (range 16) 23420 | -5/Archives | Discovered new exit (range 14) 23491 | -5/Archives | Identified exit to Hub_04(d) 23550 | -5/Archives | Entered Hub_04(d) 23550 | -5/Hub_04(d) | Accompanied by 12 allies 23616 | -5/Hub_04(d) | Garrison activated, responded to threat 23659 | -5/Hub_04(d) | Discovered exit to Factory (range 12) 23714 | -5/Hub_04(d) | Network Hub disabled 23763 | -5/Hub_04(d) | Entered Factory 23763 | -4/Factory | Accompanied by 3 allies 23763 | -4/Factory | Evolved 2 slots: Utility x2 23798 | -4/Factory | Identified exit to Upper Caves 24025 | -4/Factory | Build established: Pyromaniac-Tank 24348 | -4/Factory | Destroyed 11 combat bots 24619 | -4/Factory | Entered Upper Caves 24791 | -4/Upper Caves | Destroyed 9 combat bots 24902 | -4/Upper Caves | Discovered new exit (range 6) 24958 | -4/Upper Caves | Entered another Upper Caves area 24958 | -4/Upper Caves | Accompanied by 2 allies 24958 | -4/Upper Caves | Discovered new exit (range 12) 25037 | -4/Upper Caves | Attracted the attention of an 0b10 checkpoint 25192 | -4/Upper Caves | Discovered new exit (range 14) 25242 | -4/Upper Caves | Spotted B-86 Titan 25253 | -4/Upper Caves | Destroyed B-86 Titan 25304 | -4/Upper Caves | Entered Zhirov 25304 | -4/Zhirov | Accompanied by 2 allies 25304 | -4/Zhirov | Discovered new exit (range 3) 25322 | -4/Zhirov | Met Zhirov 25361 | -4/Zhirov | Learned location of Quarantine (-3) 25361 | -4/Zhirov | Learned location of Testing (-2) 25361 | -4/Zhirov | Learned location of Command (-1) 25371 | -4/Zhirov | Zhirov requested help retrieving the SGEMP Prototype 25449 | -4/Zhirov | Found SHELL Armor 25498 | -4/Zhirov | Entered Proximity Caves 25498 | -3/Proximity Caves | Accompanied by 2 allies 25746 | -3/Proximity Caves | Attracted the attention of an 0b10 checkpoint 25805 | -3/Proximity Caves | Discovered new exit (range 13) 25821 | -3/Proximity Caves | Entered Research 25821 | -3/Research | Accompanied by 1 ally 25821 | -3/Research | Evolved 2 slots: Utility x2 26013 | -3/Research | Spotted B-86 Titan 26020 | -3/Research | Destroyed B-86 Titan 26453 | -3/Research | Build established: Pyromaniac-Gunner 26682 | -3/Research | Garrison activated, responded to threat 26683 | -3/Research | Cargo convoy interrupted 26709 | -3/Research | Spotted Executioner 26719 | -3/Research | Destroyed Executioner 26720 | -3/Research | Spotted Striker 26725 | -3/Research | Incoming assault squad redirected 26744 | -3/Research | Destroyed Striker 26758 | -3/Research | Lost 4 parts (1n3u) 26785 | -3/Research | Destroyed 11 combat bots 26799 | -3/Research | Build established: Gunner 26821 | -3/Research | First assault squad dispatched 26838 | -3/Research | Incoming assault squad redirected 26881 | -3/Research | Spotted B-86 Titan 26926 | -3/Research | Destroyed B-86 Titan 27520 | -3/Research | Discovered new exit (range 9) 28096 | -3/Research | Incoming assault squad redirected 28126 | -3/Research | Entered Quarantine 28351 | -3/Quarantine | Cryocooling Duct disabled 28357 | -3/Quarantine | Cryocooling Duct disabled 28366 | -3/Quarantine | Ambient heat levels rising (+20) 28366 | -3/Quarantine | Non-combat units ordered to evacuate 28372 | -3/Quarantine | Ambient heat levels rising (+20) 28372 | -3/Quarantine | Combat units ordered to evacuate 28472 | -3/Quarantine | Quarantine Guard activated 28476 | -3/Quarantine | Spotted Quarantine Guard 28476 | -3/Quarantine | Spotted Quarantine Guard 28476 | -3/Quarantine | Spotted Quarantine Guard 28476 | -3/Quarantine | Spotted Quarantine Guard 28487 | -3/Quarantine | Spotted Quarantine Guard 28491 | -3/Quarantine | Destroyed Quarantine Guard 28491 | -3/Quarantine | Spotted Quarantine Guard 28491 | -3/Quarantine | Spotted Quarantine Guard 28491 | -3/Quarantine | Spotted Quarantine Guard 28498 | -3/Quarantine | Found Com. Tesla Bomb Launcher 28509 | -3/Quarantine | Destroyed Quarantine Guard 28513 | -3/Quarantine | Destroyed Quarantine Guard 28514 | -3/Quarantine | Destroyed Quarantine Guard 28514 | -3/Quarantine | Destroyed Quarantine Guard 28514 | -3/Quarantine | Destroyed Quarantine Guard 28515 | -3/Quarantine | Destroyed Quarantine Guard 28518 | -3/Quarantine | Destroyed Quarantine Guard 28531 | -3/Quarantine | Spotted Quarantine Guard 28536 | -3/Quarantine | Destroyed Quarantine Guard 28548 | -3/Quarantine | Lost 3 parts (1n2u) 28557 | -3/Quarantine | Destroyed 10 combat bots 28598 | -3/Quarantine | Spotted Quarantine Guard 28599 | -3/Quarantine | Destroyed Quarantine Guard 28628 | -3/Quarantine | Cryocooling Duct disabled 28643 | -3/Quarantine | Ambient heat levels rising (+20) 28672 | -3/Quarantine | Spotted Quarantine Guard 28681 | -3/Quarantine | Destroyed Quarantine Guard 28935 | -3/Quarantine | Spotted Alpha 7 28939 | -3/Quarantine | Destroyed Alpha 7 28951 | -3/Quarantine | Discovered new exit (range 16) 29241 | -3/Quarantine | Cryocooling Duct disabled 29256 | -3/Quarantine | Ambient heat levels rising (+20) 30042 | -3/Quarantine | Met incapacitated Sigix Warrior 30042 | -3/Quarantine | Lockdown squad dispatched 30050 | -3/Quarantine | Acquired the access code to the Sigix quarantine chamber 30053 | -3/Quarantine | Unlocked Sigix quarantine chamber 30376 | -3/Quarantine | Spotted Fortress 30459 | -3/Quarantine | Destroyed Fortress 30569 | -3/Quarantine | Discovered new exit (range 6) 30577 | -3/Quarantine | Entered Section 7 30903 | -3/Section 7 | Garrison activated, responded to threat 30961 | -3/Section 7 | Destroyed 9 combat bots 31000 | -3/Section 7 | Build established: Mutant 31101 | -3/Section 7 | Garrison activated, responded to threat 31204 | -3/Section 7 | Identified exit to Research 31212 | -3/Section 7 | Spotted S7 Guard 31305 | -3/Section 7 | Found Zero-point Reactor 31361 | -3/Section 7 | First assault squad dispatched 31394 | -3/Section 7 | Incoming assault squad redirected 31443 | -3/Section 7 | Destroyed 9 combat bots 31453 | -3/Section 7 | Found Exp. Shock Absorption System 31503 | -3/Section 7 | Spotted S7 Guard 31558 | -3/Section 7 | Lost 4 parts (4u) 31584 | -3/Section 7 | Garrison activated, responded to threat 31647 | -3/Section 7 | Found Zero-point Reactor 31667 | -3/Section 7 | System corruption reached 10% 31676 | -3/Section 7 | Lost 3 parts (1p2u) 31685 | -3/Section 7 | Destroyed 13 combat bots 31723 | -3/Section 7 | Spotted B-86 Titan 31776 | -3/Section 7 | Entered Research 31776 | -2/Research | Evolved 2 slots: Utility x2 32072 | -2/Research | Build established: Gunner 32324 | -2/Research | First assault squad dispatched 32373 | -2/Research | Garrison activated, responded to threat 32389 | -2/Research | Incoming assault squad redirected 32443 | -2/Research | Destroyed 12 combat bots 32553 | -2/Research | Incoming assault squad redirected 32614 | -2/Research | Garrison activated, responded to threat 32821 | -2/Research | Incoming assault squad redirected 32855 | -2/Research | Destroyed 19 combat bots 32876 | -2/Research | Spotted B-90 Cyclops 32993 | -2/Research | Spotted B-90 Cyclops 33018 | -2/Research | Discovered new exit (range 6) 33026 | -2/Research | Entered Access 33026 | -1/Access | Evolved 2 slots: Utility x2 33245 | -1/Access | Destroyed 9 combat bots 33276 | -1/Access | First assault squad dispatched 33314 | -1/Access | Destroyed 10 combat bots 33427 | -1/Access | Destroyed 8 combat bots 33586 | -1/Access | Incoming assault squad redirected 33631 | -1/Access | Found Exp. Force Field 33735 | -1/Access | Identified exit to Surface 33743 | -1/Access | Found Beam Splitter 33746 | -1/Access | Found EM Disruption Field 33857 | -1/Access | Incoming assault squad redirected 34067 | *** | Destroyed 0B10! Last Messages --------------- 33957_ K-01 Serf collects debris. 33957_ Acquired 6 matter. 33958_ Acquired 1 matter. 33961_ K-01 Serf collects debris. 33962_ Triggered Blade Trap. 33962_ Massive razor-sharp blades shoot up from within the floor. 33962_ Hyp. Railgun severed. 33964_ Acquired Hyp. Railgun. 33969_ U-05 Engineer lays Concrete. 33985_ K-01 Serf cleans the Terminal. 34018_ Slammed into U-05 Engineer. 34020_ K-01 Serf cleans the Terminal. 34026_ ALERT: Rogue bot located, Programmers report to Access Zone 5N. 34047_ Connecting with Terminal... [Purchased: Adv. Variable Charge Gun] 34049_ Connecting with Terminal... >>Open(Door) Sealed Barrier opened. 34052_ MU7JMPN2F1YPK>/TG=>JFF#D:MSX%GHV>R 34056_ The Access Shell folds into the floor. Map ----- +----------------------------------------------------+ | ?????????????????????????????????????????????????? | | ?????????????????????????????????????????????????? | | ?????????????????????????????????????????????????? | | ?????????????????????????????????????????????????? | | ?????????????????????????????????????????????????? | | ?????????????????????????????????????????????????? | | ?????????????????????????????????????????????????? | | ?????????????????????????????????????????????????? | | ?????????????????????????????????????????????????? | | ?????????????????????????????????????????????????? | | ?????????????????????????????????????????????????? | | ?????????????????????????????????????????????????? | | ?????????????????????????????????????????????????? | | ?????????????????????????????????????? ?????????? | | ?????????????????????????????????????? #????????? | | ?????????????????????????????????????? #????????? | | ?????????????????????????????????????? #????????? | | ?????????????????????????????????????? #????????? | | ?????????????????????????????????????? #????????? | | ?????????????????????????????###?????# #????????? | | ????????????????????########## ####### #????????? | | ????????????????????" #????????? | | ????????????????????" #????????? | | ????????????????????" #????????? | | ????????????????????" #????????? | | ????????????????????" "@ #????????? | | ????????????????????" "" #????????? | | ????????????????????" #????????? | | ????????????????????" #????????? | | ????????????????????" """ """ A#????????? | | ????????????????????" """T""" #????????? | | ????????????????????########## ####### #????????? | | ?????????????????????????????###?????# #????????? | | ????????????????????????############## #????????? | | ????????????????????????# """S""" ## #????????? | | ????????????????????????# """ """ ## #????????? | | ????????????????????????? ## #????????? | | ??????????????????????????? ## #????????? | | ????????????????????????????? ## #????????? | | ??????????????????????????????? ## ########## | | ?????????????????????????########+### | | ??????????????????? | | ??????????????????? | | ??????????????????? ##########+### #### | | ?????????????????????????????? ?????## #??? | | ????????????????????????????? ?? ???# #??? | | ????????????????????????????? ?? ??# #??? | | ????????????????????????????? ?? ?## +??? | | ????????????????????????????? ? ? "# #??? | | ???????????????????????????? ? ? ## #??? | +----------------------------------------------------+ Best States ------------- Heat Dissipation 174 Coolant Potential 120 Energy Generation 61 Energy Capacity 1230 Matter Stores 300 Matter Capacity 300 Sight Range 16 Terrain Scan Density 110 Power Amplification 30 Base Temperature (-) 200 Armor Coverage 1800 Resistance: KI 50 Resistance: TH 95 Resistance: EX 95 Resistance: EM 70 Resistance: I 20 Resistance: S 20 Resistance: P 20 Utility Shielding 66 Weapon Shielding 66 Weapon Cycling 25 Phase Shifting 20 Evasion (%) 60 Targeting Accuracy 12 Target Analysis 8 Core Analysis 15 Recoil Reduction 3 Matter Filtering 50 Energy Filtering 50 Particle Charging 30 Kinecelleration 50 Stasis Canceling 2 Offensive Hacking 38 Item Schematics ----------------- Combat Drone Bay | -6/Data Miner | Free Lgt. Regenerative Plating | -6/Data Miner | Free Cld. Gravmag System | -6/Data Miner | Free Prc. Matter Filter | -6/Data Miner | Free Cld. Plasma Rifle | -6/Data Miner | Free Field Propulsion Array | -6/Data Miner | Free Adv. Hardlight Generator | -6/Data Miner | Free Matter Neutralizer | -6/Data Miner | Free Adv. Surge Thruster | -6/Data Miner | Free Adv. Actuator Array | -6/Data Miner | Free Gamma Bomb Array | -6/Data Miner | Free Enh. Force Lance | -6/Data Miner | Free Assault Drone Bay | -4/Zhirov | Free Exp. Heat Sink | -4/Zhirov | Free Exp. Optical Array | -4/Zhirov | Free Imp. Arc Thrower | -4/Zhirov | Free Robot Schematics ------------------ X-67 Chaingunner | -6/Data Miner | Free R-10 Processor | -6/Data Miner | Free B-60 Warrior | -6/Data Miner | Free B-48 Gladiator | -6/Data Miner | Free H-66 Slayer | -6/Data Miner | Free G-67 Veteran | -6/Data Miner | Free Fabricated ------------ Nothing Alien Tech Used ----------------- None Achievements -------------- None Challenges ------------ None Cogshop Purchases (171) ------------------------- Imp. Assault Rifle (699) Imp. Assault Rifle (699) Spk. Treads (874) Spk. Treads (874) Ion Engine (599) Hrd. Light Armor Plating (699) Imp. Terrain Scan Processor (Loot Box) Prc. Beam Rifle (Loot Box) Hvy. Assault Rifle (Loot Box) Hvy. Ion Cannon (Loot Box) Cooling System (Loot Box) System Backup Module (Loot Box) Rocket Launcher (927) EMP Blaster (538) EMP Blaster (538) Arm. Treads (535) Arm. Treads (535) Imp. Heat Sink (916) Hvy. Armor Plating (718) Imp. Heat Sink (1000) Hvy. Ion Engine (634) Imp. Assault Rifle (461) Imp. Assault Rifle (461) Imp. Assault Rifle (461) Hvy. Armor Plating (1499) Adv. Signal Interpreter (Loot Box) Thermal Generator (Loot Box) Imp. VTOL Module (Loot Box) Imp. Cooling System (884) Adv. Beam Rifle (936) Adv. Beam Rifle (936) Adv. Beam Rifle (936) Med. Reflective Plating (1508) Med. Reactive Plating (1508) Particle Charger (664) Coolant Injector (773) Arm. Treads (1595) Energy Filter (773) Particle Charger (687) Hvy. Deuterium Engine (1060) Med. Reactive Plating (2690) Adv. Beam Rifle (1019) Energy Filter (887) Med. Reflective Plating (2644) Hvy. Missile Launcher (1078) Hpw. Electrolaser (2026) Coolant Injector (792) Arm. Treads (1970) Energy Filter (792) Arm. Treads (1085) Med. Reflective Plating (2117) Adv. Targeting Computer (803) Imp. Cooling System (899) Hpw. Electrolaser (1785) Hvy. Deuterium Engine (383) Energy Filter (992) Imp. Cooling System (1007) Hpw. Electrolaser (2651) Energy Filter (1321) Med. Reflective Plating (2672) Cold Fusion Reactor (770) Imp. Medium Treads (2689) Imp. Medium Treads (2689) Imp. Arc Projector (Loot Box) Myomer Exoskeleton (Loot Box) Cld. Plasma Rifle (1392) Cld. Plasma Rifle (1392) Cld. Plasma Rifle (1392) Cld. Plasma Rifle (1392) Imp. Weapon Shielding (1190) Particle Accelerator (2286) Imp. Weapon Shielding (1063) Lyr. Medium Armor Plating (1330) Energy Filter (1021) Particle Accelerator (3134) Hvy. Antimatter Reactor (792) Hvy. Antimatter Reactor (1106) Adv. Power Amplifier (1514) Exp. Cooling System (1666) Hvy. Insulated Plating (1099) Particle Accelerator (3333) Adv. Plasma Rifle (1062) Adv. Plasma Rifle (1062) Adv. Plasma Rifle (1062) Adv. Plasma Rifle (1062) Imp. Force Field (1626) Energy Well (760) Exp. Targeting Computer (2198) Prc. Energy Filter (1421) EM Shield (1384) Med. Reflective Plating (1002) Imp. Weapon Shielding (867) Exp. Coolant Injector (1674) Hvy. Antimatter Reactor (1101) Adv. Weapon Cycler (2017) Centrium Medium Armor Plating (3454) Coolant Network (1999) Biometal Heavy Treads (Loot Box) Adv. Heavy Treads (Loot Box) Arm. Heavy Treads (Loot Box) Centrium Wheel (Loot Box) SHELL Armor (Loot Box) Hvy. Dispersion Rifle (1687) Hvy. Dispersion Rifle (1687) Hvy. Dispersion Rifle (1687) Hvy. Dispersion Rifle (1687) Adv. Force Field (1604) Imp. Weapon Shielding (750) Imp. Fusion Compressor (1581) Adv. Cryofiber Web (1581) Imp. Weapon Shielding (638) Imp. Quantum Reactor (1379) Imp. Quantum Reactor (1379) System Backup Module (1810) Adv. Focal Shield (2097) Com. Tesla Bomb Launcher (3388) Enh. Armored Heavy Treads (2767) Enh. Armored Medium Treads (2372) Stasis Projector (Loot Box) Adv. Particle Charger (2175) Centrium Wheel (Loot Box) Impulse Thruster Array (Loot Box) Enh. Nova Cannon (Loot Box) Exp. Biometal Medium Treads (Loot Box) Exp. Shock Absorption System (Loot Box) Linear Accelerator (Loot Box) Lgt. Quantum Reactor (Loot Box) Imp. Stasis Canceller (Loot Box) Zero-point Reactor (4499) Zero-point Reactor (4499) Centrium Greatsword (2330) Imp. System Backup Module (695) Exp. Phase Shifter (2921) EM Shield (695) Thermal Barrier (2422) Thermal Barrier (Loot Box) Imp. Stasis Canceller (Loot Box) Exp. Biometal Medium Treads (Loot Box) Exp. Stasis Projector (Loot Box) Hyp. Railgun (1332) Prc. Matter Filter (1168) Exp. Core Analyzer (1388) Adv. Target Analyzer (1190) Adv. Kinecellerator (2762) Helical Railgun (1523) Helical Railgun (1523) Helical Railgun (1523) Centrium Heavy Treads (1539) Imp. Utility Shielding (752) Exp. Force Field (2975) Com. Matter Pod (539) Adv. Coolant Injector (1483) EM Disruption Field (2967) Imp. Fusion Compressor (1798) Exp. Cooling System (1798) Adv. Focal Shield (1798) Hyp. Railgun (1466) Beam Splitter (4197) Adv. Energy Well (922) Exp. Shock Absorption System (Loot Box) Quantum Reactor (Loot Box) Centrium Leg (Loot Box) Stasis Projector (Loot Box) Adv. Hardlight Generator (2758) Adv. Hacking Suite (1815) Adv. Hacking Suite (1815) Adv. Hacking Suite (1815) Adv. System Shield (1815) Railgun (1016) Railgun (1016) Adv. Variable Charge Gun (1088) Game ------ Seed AssemblySystemFirepult Manual? 0 Play Time 04:54:45 Cumulative 1121.8 hours Start 2021.12.21 @ 01:34:48 End 2021.12.21 @ 21:43:34 Sessions 5 Manual Loads 0 Difficulty Adventurer Special Mode AFD2019/Pay2Buy Game No. 715 Rogue 702 Adventurer 5 Explorer 8 Win Type 3 Total 19 Types 10/1/4/4/0/0/0/0/0 Lore% 87 Gallery% 91 Achievement% 81 Wizard Run 0 Options --------- ASCII 0 Keyboard 0 Movement Mouse Keybinds 0 Fullscreen 1 Font 24/Crisp Map View 76x50 Tactical HUD 1 Map Filters NONE Filters NONE Steam 1 RUN: 3922959c-3c96-4bc2-9509-83a257cad6d9